[Event "ESTCC U65 2018"]
[Site "Walbrzych"]
[Date "2018.04.17"]
[Round "4"]
[White "Wademark, Helge"]
[Black "Rantanen, Veikko"]
[Result "1-0"]
[ECO "C05"]
[WhiteElo "2005"]
[BlackElo "2007"]
[Annotator "NA"]
[PlyCount "93"]
[EventDate "2018.??.??"]
[EventCountry "POL"]
[SourceTitle "playchess.com"]
[Source "ChessBase"]
[SourceQuality "1"]
[WhiteTeam "Sweden"]
[BlackTeam "Finland"]
[WhiteTeamCountry "SWE"]
[BlackTeamCountry "FIN"]
[TimeControl "40/5400+30:1800+30"]

1. e4 {[%emt 0:00:00]} e6 {[%emt 0:00:17]} 2. d4 {[%emt 0:00:00]} d5 3. Nd2 {[%emt 0:00:32]} Nf6 {[%emt 0:00:59]} 4. e5 {[%emt 0:00:26]} Nfd7 5. f4 {[%emt 0:00:37]} c5 {[%emt 0:00:31]} 6. c3 Nc6 {[%emt 0:00:42]} 7. Ndf3 {[%emt 0:00:11]} Qb6 {[%emt 0:01:46]} 8. Ne2 {[%emt 0:01:18]} Be7 {[%emt 0:01:43]} 9. g3 {[%emt 0:02:17]} cxd4 {[%emt 0:04:45]} 10. cxd4 {[%emt 0:03:29]} O-O {[%emt 0:08:12]} 11. Bh3 {[%emt 0:01:47]} f5 {[%emt 0:02:03]} 12. O-O {[%emt 0:03:27] C05: French Tarrasch: 3...Nf6 4 e5 Nfd7, 5 f4 and 5 Bd3 sidelines} Qd8 {[%emt 0:23:38]} 13. Kh1 {[#]} Qe8 $146 {[%emt 0:00:54]} ({Predecessor:} 13... Nb6 14. b3 a5 15. a4 Nb4 16. Ba3 Ra6 17. Rg1 Na8 18. g4 Nc7 19. gxf5 exf5 {½-½ (70) Ayala,G-Rodriguez Vila,A (2538) Avellaneda 2007}) 14. Rg1 {[%emt 0:06:30]} Qh5 {[%emt 0:03:58]} 15. Qf1 {[%emt 0:05:18]} Kh8 16. Bd2 Nb6 {[%emt 0:02:42]} 17. b3 {[%emt 0:01:15]} Bd7 {[%emt 0:00:18]} 18. Bg2 {[%emt 0:04:50]} Rac8 {[%emt 0:01:16]} 19. a3 {[%emt 0:01:32]} Nd8 {[%emt 0:02:02]} 20. Nc3 {[%emt 0:04:18]} Nf7 {[%emt 0:01:41]} 21. Qd3 {[%emt 0:03:59]} Nh6 {[%emt 0:02:04]} 22. Rgc1 {[%emt 0:01:35]} Ng4 {[%emt 0:00:18]} 23. Kg1 {[%emt 0:00:28]} a6 {[%emt 0:00:49]} 24. h3 {[%emt 0:02:43]} Nh6 {[%emt 0:00:18]} 25. a4 {[%emt 0:00:31]} Nf7 {[%emt 0:07:10]} 26. Ne2 {[%emt 0:04:41]} Nd8 {[%emt 0:12:33]} 27. Ba5 {[%emt 0:08:20]} Na8 {[%emt 0:00:12]} 28. Rxc8 {[%emt 0:01:31]} Bxc8 {[%emt 0:00:06]} 29. Rc1 $11 {[%emt 0:05:57]} Nc6 {[%emt 0:00:16]} 30. Bc3 {[%emt 0:00:36]} Bd7 {[%emt 0:01:08]} 31. Kf2 {[%emt 0:01:32]} Rc8 {[%emt 0:01:14]} 32. Bd2 {[%emt 0:02:08]} Qe8 {[%emt 0:01:06]} 33. g4 {[%emt 0:01:20]} Bb4 {[%emt 0:01:57]} 34. Rxc6 {[%emt 0:01:12]} Rxc6 {[%emt 0:01:35]} 35. Bxb4 {[%emt 0:00:26]} Qc8 {[%emt 0:01:20]} 36. gxf5 {[%emt 0:01:58]} exf5 {[%emt 0:00:08]} 37. Ng5 {[%emt 0:00:15]} Be6 {[%emt 0:01:53]} 38. Nxe6 {[%emt 0:04:11]} Qxe6 {[%emt 0:00:08]} 39. Nc3 {[%emt 0:00:37]} Qh6 {[%emt 0:02:13]} 40. Qxf5 {[%emt 0:00:00]} g6 {[%emt 0:03:31]} 41. Qg5 {[%emt 0:08:14]} Qxg5 {[%emt 0:03:56]} 42. fxg5 {[%emt 0:00:07]} Nc7 {[%emt 0:00:13]} 43. Ke2 {[%emt 0:01:29]} b6 {[%emt 0:00:33]} 44. Kd3 {[%emt 0:00:10]} a5 {[%emt 0:00:33]} 45. Bd6 {[%emt 0:00:18]} Ne6 {[%emt 0:00:59]} 46. Bxd5 {[%emt 0:02:06]} Nf4+ {[%emt 0:00:59]} 47. Ke4 {[%emt 0:00:14]} 1-0

[Event "ESTCC U65 2018"]
[Site "Walbrzych"]
[Date "2018.04.17"]
[Round "4"]
[White "Alkkiomaki, Jyrki"]
[Black "Lundgren, Ulf"]
[Result "0-1"]
[ECO "B38"]
[WhiteElo "1967"]
[BlackElo "1989"]
[Annotator "NA"]
[PlyCount "105"]
[EventDate "2018.??.??"]
[EventCountry "POL"]
[SourceTitle "playchess.com"]
[Source "ChessBase"]
[SourceQuality "1"]
[WhiteTeam "Finland"]
[BlackTeam "Sweden"]
[WhiteTeamCountry "FIN"]
[BlackTeamCountry "SWE"]
[TimeControl "40/5400+30:1800+30"]

1. e4 {[%emt 0:00:00]} c5 {[%emt 0:00:08]} 2. Nf3 {[%emt 0:00:00]} Nc6 {[%emt 0:00:07]} 3. d4 {[%emt 0:00:00]} cxd4 {[%emt 0:00:03]} 4. Nxd4 {[%emt 0:00:00]} g6 {[%emt 0:00:08]} 5. c4 {[%emt 0:00:16]} Bg7 {[%emt 0:00:10]} 6. Be3 {[%emt 0:00:22]} d6 {[%emt 0:02:24]} 7. Nc3 {[%emt 0:02:23]} Nf6 {[%emt 0:00:10]} 8. Be2 {[%emt 0:00:13]} O-O {[%emt 0:00:38]} 9. O-O {[%emt 0:00:10]} Bd7 {[%emt 0:01:10]} 10. Rc1 {[%emt 0:03:39]} Rc8 {[%emt 0:01:49]} 11. h3 {[%emt 0:04:54]} Ne8 {[%emt 0:09:40]} 12. Re1 {[%emt 0:07:29]} Ne5 $16 {[%emt 0:10:06]} 13. b3 {[%emt 0:00:55]} Bc6 {[%emt 0:02:35]} 14. f4 {[%emt 0:17:44]} Nd7 {[%emt 0:01:29]} 15. Bf3 {[%emt 0:02:34]} Qa5 {[%emt 0:08:33]} 16. Nd5 {[%emt 0:10:43]} Qd8 {[%emt 0:05:58]} 17. Rc2 {[%emt 0:01:33]} Nef6 {[%emt 0:02:26]} 18. Rce2 {[%emt 0:02:09]} Nc5 {[%emt 0:02:22]} 19. Bf2 {[%emt 0:02:43]} Re8 {[%emt 0:04:09]} 20. Qd2 {[%emt 0:06:34]} e5 {[%emt 0:12:05]} 21. fxe5 {[%emt 0:07:05]} dxe5 {[%emt 0:01:57]} 22. Nc2 {[%emt 0:02:29]} Ne6 {[%emt 0:14:38]} 23. Rd1 {[%emt 0:03:57]} Nf4 {[%emt 0:01:43]} 24. Ree1 {[%emt 0:01:04]} Bxd5 {[%emt 0:01:47]} 25. exd5 {[%emt 0:00:34]} b6 {[%emt 0:00:56]} 26. Nb4 {[%emt 0:01:06]} Qd6 {[%emt 0:00:32]} 27. Nd3 {[%emt 0:05:27]} Nxd3 {[%emt 0:01:08]} 28. Qxd3 {[%emt 0:00:09]} Nd7 {[%emt 0:00:17]} 29. Qb1 {[%emt 0:02:52]} a5 {[%emt 0:02:08]} 30. Rd2 {[%emt 0:03:57]} f5 {[%emt 0:01:48]} 31. Bd1 {[%emt 0:02:15]} e4 {[%emt 0:03:36]} 32. Rde2 {[%emt 0:00:21]} Bc3 {[%emt 0:02:30]} 33. Rf1 {[%emt 0:00:16]} Qe5 {[%emt 0:00:34]} 34. Bc2 {[%emt 0:00:29]} Bd4 {[%emt 0:00:26]} 35. Qe1 {[%emt 0:00:42]} Nc5 {[%emt 0:01:49]} 36. a3 {[%emt 0:00:34]} Bxf2+ {[%emt 0:01:32]} 37. Qxf2 {[%emt 0:00:46]} h5 {[%emt 0:02:28]} 38. b4 {[%emt 0:00:18]} axb4 {[%emt 0:00:08]} 39. axb4 {[%emt 0:00:07]} Nd7 {[%emt 0:00:09]} 40. Ba4 {[%emt 0:00:00]} Rcd8 {[%emt 0:03:22]} 41. Bxd7 {[%emt 0:00:41]} Rxd7 {[%emt 0:00:46]} 42. Qxb6 {[%emt 0:00:14]} Rd6 {[%emt 0:00:20]} 43. Qc5 {[%emt 0:04:03]} Rf6 {[%emt 0:03:44]} 44. b5 {[%emt 0:01:38]} f4 {[%emt 0:08:29]} 45. Rfe1 {[%emt 0:09:32]} f3 {[%emt 0:02:17]} 46. Rxe4 {[%emt 0:12:12]} Qxe4 {[%emt 0:01:42]} 47. Rxe4 {[%emt 0:00:25]} Rxe4 {[%emt 0:00:07]} 48. gxf3 {[%emt 0:00:40]} Rxf3 {[%emt 0:00:10]} 49. d6 {[%emt 0:01:38]} Ree3 {[%emt 0:00:22]} 50. Qd5+ {[%emt 0:01:21]} Kg7 {[%emt 0:02:36]} 51. d7 {[%emt 0:00:21]} Re1+ {[%emt 0:04:07]} 52. Kg2 {[%emt 0:00:13]} Rfe3 {[%emt 0:00:12]} 53. Qd4+ {[%emt 0:00:13]} 0-1

[Event "ESTCC U65 2018"]
[Site "Walbrzych"]
[Date "2018.04.17"]
[Round "4"]
[White "Tichatschke, Wolfgang"]
[Black "Hurme, Harri"]
[Result "0-1"]
[ECO "A05"]
[WhiteElo "1967"]
[BlackElo "2229"]
[Annotator "NA"]
[PlyCount "78"]
[EventDate "2018.??.??"]
[EventCountry "POL"]
[SourceTitle "playchess.com"]
[Source "ChessBase"]
[SourceQuality "1"]
[WhiteTeam "Germany"]
[BlackTeam "Finland"]
[WhiteTeamCountry "GER"]
[BlackTeamCountry "FIN"]
[TimeControl "40/5400+30:1800+30"]

1. Nf3 {[%emt 0:00:00]} Nf6 {[%emt 0:00:13]} 2. g3 {[%emt 0:00:00]} g6 {[%emt 0:00:16]} 3. Bg2 {[%emt 0:00:00]} Bg7 {[%emt 0:00:11]} 4. O-O {[%emt 0:00:00]} O-O {[%emt 0:00:13]} 5. d3 {[%emt 0:00:31]} d5 {[%emt 0:00:37]} 6. Bg5 {[%emt 0:00:17] A07: Réti Opening: New York and Capablanca Systems} (6. Nbd2 c5 7. e4 Nc6 8. c3 Bg4 9. Qc2 Qd7 10. Re1 dxe4 11. dxe4 Rfd8 12. Nc4 Bxf3 13. Bxf3 b5 14. e5 bxc4 15. exf6 Bxf6 16. Bf4 Rac8 {0-1 (41) Petrosian,T (2601)-Wang,H (2709) Riadh 2017}) 6... c6 {[%emt 0:02:06]} 7. Nbd2 {[%emt 0:01:14]} h6 $146 {[%emt 0:01:08]} ({Predecessor:} 7... Nbd7 8. c3 Re8 9. Qc2 Nf8 10. e4 dxe4 11. Nxe4 Nxe4 12. dxe4 f6 13. Be3 e5 {1-0 (22) Kashutin,M (1872)-Osankin,S (1663) Cheliabinsk 2010}) 8. Bf4 {[%emt 0:00:39]} Nfd7 {[%emt 0:02:24]} 9. d4 {[%emt 0:03:45]} f6 {[%emt 0:04:32]} 10. c3 {[%emt 0:02:25]} e5 {[%emt 0:01:08]} 11. Be3 {[%emt 0:00:21]} Re8 {[%emt 0:02:36]} 12. Qb3 {[%emt 0:02:47]} Kh7 {[%emt 0:02:56]} 13. dxe5 {[%emt 0:10:11]} fxe5 {[%emt 0:01:27]} 14. Rad1 {[%emt 0:01:05]} Nf6 {[%emt 0:03:40]} 15. Bc5 {[%emt 0:02:43]} Nbd7 {[%emt 0:02:28]} 16. Ba3 {[%emt 0:03:42]} Qb6 {[%emt 0:01:32]} 17. Qc2 {[%emt 0:07:58]} e4 {[%emt 0:06:14]} 18. Nh4 {[%emt 0:17:19]} Ne5 {[%emt 0:02:39]} 19. Nb3 $17 {[%emt 0:07:12]} Bf8 {[%emt 0:10:47]} 20. Bxf8 {[%emt 0:05:14]} Rxf8 {[%emt 0:00:02]} 21. Bh1 {[%emt 0:01:05]} Bh3 {[%emt 0:01:47]} 22. Bg2 {[%emt 0:04:11]} Bd7 {[%emt 0:01:12]} 23. Bh1 {[%emt 0:08:29]} Rae8 {[%emt 0:00:50]} 24. Ng2 {[%emt 0:05:45]} Bh3 {[%emt 0:00:40]} 25. Nd4 {[%emt 0:03:53]} Nfg4 {[%emt 0:02:19]} 26. Nf4 {[%emt 0:05:23]} Bxf1 {[%emt 0:03:35]} 27. Rxf1 {[%emt 0:00:30]} Rf7 {[%emt 0:03:31]} 28. h3 {[%emt 0:01:42]} Nf6 {[%emt 0:00:16]} 29. e3 {[%emt 0:01:54]} c5 {[%emt 0:01:36]} 30. Nde2 {[%emt 0:00:47]} c4 {[%emt 0:05:43]} 31. b3 {[%emt 0:00:45]} Nd3 {[%emt 0:01:17]} 32. Nd4 {[%emt 0:01:29]} Qd6 {[%emt 0:04:54]} 33. bxc4 {[%emt 0:00:36]} dxc4 {[%emt 0:00:21]} 34. Qe2 {[%emt 0:00:41]} Nd5 {[%emt 0:03:21]} 35. Qg4 {[%emt 0:00:54]} Nxc3 {[%emt 0:04:57]} 36. Nde6 {[%emt 0:01:19]} Ne5 {[%emt 0:01:37]} 37. Qh4 {[%emt 0:01:02]} Rxe6 {[%emt 0:00:34]} 38. Nxe6 {[%emt 0:00:22]} Qxe6 {[%emt 0:00:06]} 39. Bxe4 {[%emt 0:00:28]} Nxe4 {[%emt 0:00:44]} 0-1

[Event "ESTCC U65 2018"]
[Site "Walbrzych"]
[Date "2018.04.17"]
[Round "4"]
[White "Kauko, Pekka"]
[Black "Grahn, Lars"]
[Result "1/2-1/2"]
[ECO "A81"]
[WhiteElo "1961"]
[BlackElo "1949"]
[Annotator "NA"]
[PlyCount "65"]
[EventDate "2018.??.??"]
[EventCountry "POL"]
[SourceTitle "playchess.com"]
[Source "ChessBase"]
[SourceQuality "1"]
[WhiteTeam "Finland"]
[BlackTeam "Sweden"]
[WhiteTeamCountry "FIN"]
[BlackTeamCountry "SWE"]
[TimeControl "40/5400+30:1800+30"]

1. d4 {[%emt 0:00:00]} f5 {[%emt 0:00:30]} 2. g3 {[%emt 0:00:30]} Nf6 {[%emt 0:00:30]} 3. Bg2 {[%emt 0:00:30]} g6 {[%emt 0:00:30]} 4. Nc3 {[%emt 0:00:30]} d5 {[%emt 0:00:22]} 5. Bg5 {[%emt 0:00:00]} Bg7 {[%emt 0:00:24]} 6. Bxf6 {[%emt 0:00:39]} Bxf6 {[%emt 0:03:43]} 7. Nxd5 {[%emt 0:00:37]} Bg7 {[%emt 0:00:16]} 8. c3 {[%emt 0:00:28]} c6 {[%emt 0:07:00]} 9. Nf4 {[%emt 0:01:12]} O-O {[%emt 0:02:24]} 10. Nf3 {[%emt 0:01:11]} e6 {[%emt 0:08:01]} 11. h4 {[%emt 0:02:29]} Na6 {[%emt 0:02:02]} 12. Qb3 {[%emt 0:01:38]} Nc7 {[%emt 0:01:07]} 13. Ng5 {[%emt 0:08:59]} Qe7 {[%emt 0:04:22]} 14. O-O-O {[%emt 0:02:02]} Bf6 {[%emt 0:06:25]} 15. Kb1 {[%emt 0:04:16]} Bxg5 {[%emt 0:08:14]} 16. hxg5 {[%emt 0:00:03]} Qxg5 {[%emt 0:00:40]} 17. e4 {[%emt 0:03:20]} fxe4 {[%emt 0:03:58]} 18. Bxe4 {[%emt 0:00:25]} Nd5 {[%emt 0:01:17]} 19. Nd3 {[%emt 0:01:23]} Nf6 {[%emt 0:04:18]} 20. Nc5 {[%emt 0:04:50]} (20. Bg2 $18) 20... Nxe4 $16 {[%emt 0:02:56]} 21. Nxe4 {[%emt 0:00:37]} Qd5 {[%emt 0:00:34]} 22. Qc2 {[%emt 0:00:38]} e5 {[%emt 0:02:33]} 23. dxe5 {[%emt 0:01:11]} Qxe5 {[%emt 0:00:16]} 24. f4 {[%emt 0:00:29]} Qe7 {[%emt 0:03:22]} 25. Nd6 {[%emt 0:12:21]} Bf5 {[%emt 0:04:11]} 26. Nxf5 {[%emt 0:00:27]} Rxf5 {[%emt 0:00:16]} 27. Rhe1 {[%emt 0:01:25]} Qf7 {[%emt 0:03:59]} 28. Qe4 {[%emt 0:02:20]} Rf8 {[%emt 0:03:28]} 29. Rd2 {[%emt 0:06:04]} Ra5 {[%emt 0:06:30]} 30. b3 {[%emt 0:00:49]} Qf5 {[%emt 0:00:48]} 31. Kb2 {[%emt 0:02:09]} Qxe4 {[%emt 0:00:40]} 32. Rxe4 {[%emt 0:00:02]} Raf5 {[%emt 0:00:14]} 33. c4 {[%emt 0:01:53]} 1/2-1/2

[Event "ESTCC U65 2018"]
[Site "Walbrzych"]
[Date "2018.04.17"]
[Round "4"]
[White "Nilsson, Christer"]
[Black "Ranki, Martti"]
[Result "1-0"]
[ECO "B32"]
[WhiteElo "1931"]
[BlackElo "1942"]
[Annotator "NA"]
[PlyCount "69"]
[EventDate "2018.??.??"]
[EventCountry "POL"]
[SourceTitle "playchess.com"]
[Source "ChessBase"]
[SourceQuality "1"]
[WhiteTeam "Sweden"]
[BlackTeam "Finland"]
[WhiteTeamCountry "SWE"]
[BlackTeamCountry "FIN"]
[TimeControl "40/5400+30:1800+30"]

1. e4 {[%emt 0:00:00]} c5 {[%emt 0:00:25]} 2. Nf3 {[%emt 0:00:00]} Nc6 {[%emt 0:00:15]} 3. d4 {[%emt 0:00:12]} cxd4 {[%emt 0:00:32]} 4. Nxd4 {[%emt 0:00:11]} d6 {[%emt 0:00:14]} 5. Nc3 {[%emt 0:01:21]} Bd7 {[%emt 0:00:17]} 6. Be2 {[%emt 0:05:20]} g6 {[%emt 0:00:26]} 7. Be3 {[%emt 0:07:14]} Bg7 {[%emt 0:00:19]} 8. Qd2 {[%emt 0:04:49]} Nf6 {[%emt 0:00:26]} 9. h3 {[%emt 0:01:59]} O-O {[%emt 0:00:24]} 10. Nb3 {[%emt 0:07:32]} Re8 {[%emt 0:04:43]} 11. O-O {[%emt 0:02:02]} a6 {[%emt 0:04:37]} 12. f4 {[%emt 0:05:07]} b5 {[%emt 0:01:19]} 13. a3 {[%emt 0:01:12]} Qc7 {[%emt 0:02:51]} 14. Rad1 {[%emt 0:05:33]} Rad8 {[%emt 0:08:32]} 15. Qe1 {[%emt 0:06:36]} b4 {[%emt 0:13:00]} 16. Nd5 {[%emt 0:07:44]} Qb7 {[%emt 0:04:59]} 17. axb4 {[%emt 0:06:59]} Nxd5 {[%emt 0:01:49]} 18. exd5 {[%emt 0:01:48]} Nxb4 $11 {[%emt 0:05:01]} 19. Na5 {[%emt 0:01:55]} Qb8 {[%emt 0:01:20]} 20. Qd2 {[%emt 0:01:50]} Bb5 {[%emt 0:04:17]} 21. c4 {[%emt 0:01:49]} Bd7 {[%emt 0:01:33]} 22. Bg4 {[%emt 0:04:15]} Bxg4 {[%emt 0:02:47]} 23. hxg4 {[%emt 0:00:05]} e6 {[%emt 0:01:02]} 24. dxe6 {[%emt 0:05:16]} Rxe6 {[%emt 0:01:19]} 25. Rf3 {[%emt 0:00:24]} Rde8 {[%emt 0:01:41]} 26. Bf2 {[%emt 0:04:42]} d5 {[%emt 0:07:53]} 27. Rb3 {[%emt 0:01:41]} Bf8 {[%emt 0:00:30]} 28. c5 {[%emt 0:04:13]} Qc7 {[%emt 0:03:43]} 29. Qxb4 {[%emt 0:01:09]} Re2 30. Rxd5 R8e4 {[%emt 0:04:45]} 31. Qb6 {[%emt 0:01:57]} Qxf4 {[%emt 0:00:25]} 32. Rf3 {[%emt 0:03:08]} Qc1+ {[%emt 0:03:08]} 33. Kh2 {[%emt 0:00:22]} Rxg4 {[%emt 0:00:56]} 34. Qf6 {[%emt 0:01:43]} Qf1 {[%emt 0:00:53]} 35. Qxf7+ {[%emt 0:00:16]} 1-0

[Event "ESTCC U65 2018"]
[Site "Walbrzych"]
[Date "2018.04.17"]
[Round "4"]
[White "Ruotanen, Helge"]
[Black "Mortensen, Steen Juul"]
[Result "1/2-1/2"]
[ECO "B26"]
[WhiteElo "1921"]
[BlackElo "1940"]
[Annotator "NA"]
[PlyCount "38"]
[EventDate "2018.??.??"]
[EventCountry "POL"]
[SourceTitle "playchess.com"]
[Source "ChessBase"]
[SourceQuality "1"]
[WhiteTeam "Finland"]
[BlackTeam "Denmark"]
[WhiteTeamCountry "FIN"]
[BlackTeamCountry "DEN"]
[TimeControl "40/5400+30:1800+30"]

1. g3 {[%emt 0:00:00]} g6 {[%emt 0:00:11]} 2. d3 {[%emt 0:00:24]} Bg7 {[%emt 0:00:06]} 3. Bg2 {[%emt 0:00:16]} c5 {[%emt 0:00:16]} 4. Nc3 {[%emt 0:00:32]} Nc6 {[%emt 0:00:29]} 5. e4 {[%emt 0:00:58]} d6 {[%emt 0:01:09]} 6. Be3 {[%emt 0:05:29]} e6 {[%emt 0:02:42]} 7. Qd2 {[%emt 0:01:30]} Nge7 {[%emt 0:00:28]} 8. Nge2 {[%emt 0:06:44]} Nd4 {[%emt 0:02:58]} 9. O-O {[%emt 0:04:23]} Qa5 {[%emt 0:02:57]} 10. Kh1 {[%emt 0:02:25]} Nec6 {[%emt 0:05:35]} 11. Qc1 {[%emt 0:06:07]} Nb4 {[%emt 0:03:10]} 12. Bxd4 {[%emt 0:05:53]} cxd4 {[%emt 0:00:15]} 13. Nb1 {[%emt 0:01:58]} Bd7 {[%emt 0:02:52]} 14. Nd2 {[%emt 0:02:27]} Rc8 {[%emt 0:11:23]} 15. Nc4 {[%emt 0:01:04]} Qc5 {[%emt 0:05:37]} 16. a3 {[%emt 0:01:15]} Nxc2 {[%emt 0:02:44]} 17. Qxc2 {[%emt 0:00:28]} b5 {[%emt 0:02:11]} 18. Nxd6+ {[%emt 0:03:14]} Qxd6 {[%emt 0:00:26]} 19. Qd2 {[%emt 0:00:21]} O-O {[%emt 0:00:36]} 1/2-1/2

[Event "ESTCC U65 2018"]
[Site "Walbrzych"]
[Date "2018.04.17"]
[Round "4"]
[White "Marks, Ian A"]
[Black "Lisenko, Alexander V"]
[Result "0-1"]
[ECO "A46"]
[WhiteElo "1895"]
[BlackElo "2368"]
[Annotator "NA"]
[PlyCount "42"]
[EventDate "2018.??.??"]
[EventCountry "POL"]
[SourceTitle "playchess.com"]
[Source "ChessBase"]
[SourceQuality "1"]
[WhiteTeam "Scotland"]
[BlackTeam "Russia"]
[WhiteTeamCountry "SCO"]
[BlackTeamCountry "RUS"]
[TimeControl "40/5400+30:1800+30"]

1. d4 {[%emt 0:00:00]} Nf6 {[%emt 0:00:05]} 2. Nf3 {[%emt 0:00:00]} e6 {[%emt 0:00:09]} 3. e3 {[%emt 0:00:02]} b6 {[%emt 0:00:12]} 4. Bd3 {[%emt 0:00:08]} Bb7 {[%emt 0:00:10]} 5. O-O {[%emt 0:00:19]} c5 {[%emt 0:00:07]} 6. c4 {[%emt 0:00:36]} cxd4 {[%emt 0:00:36]} 7. exd4 {[%emt 0:00:11]} Be7 {[%emt 0:00:16]} 8. Nc3 {[%emt 0:00:18]} d5 {[%emt 0:01:07]} 9. cxd5 {[%emt 0:00:48]} Nxd5 {[%emt 0:00:07]} 10. Re1 {[%emt 0:03:25]} Nxc3 {[%emt 0:02:46] E14: Queen's Indian: Classical Variation (4 e3)} 11. bxc3 {[%emt 0:00:13]} Nd7 {[%emt 0:00:59]} 12. Qe2 {[%emt 0:05:49]} O-O {[%emt 0:00:55]} 13. Bb2 $146 {[%emt 0:11:01]} ({Predecessor:} 13. Bf4 Nf6 14. Be5 Rc8 15. c4 Bd6 16. Rad1 Bb4 17. Rf1 Nd7 18. h4 Bxf3 19. Qxf3 Nxe5 20. dxe5 Qxh4 21. g3 Qg5 22. Qe4 g6 23. Kg2 {½-½ (23) Laxman,R (2390)-Meister,J (2504) playchess.com INT 2006}) 13... Bf6 {[%emt 0:08:18]} 14. Ne5 {[%emt 0:06:04]} Bxe5 {[%emt 0:07:16]} 15. dxe5 {[%emt 0:00:36]} Nc5 {[%emt 0:00:21]} 16. Bxh7+ {[%emt 0:14:09]} Kxh7 {[%emt 0:00:14]} 17. Qh5+ {[%emt 0:00:06]} Kg8 {[%emt 0:00:05]} 18. Re3 {[%emt 0:00:15]} Qd5 {[%emt 0:04:52]} 19. Rg3 {[%emt 0:00:43]} Qe4 {[%emt 0:11:32]} 20. f3 {[%emt 0:10:14]} Qe3+ {[%emt 0:04:45]} 21. Kh1 {[%emt 0:00:19]} Nd3 $19 {[%emt 0:00:16]} 0-1

[Event "ESTCC U65 2018"]
[Site "Walbrzych"]
[Date "2018.04.17"]
[Round "4"]
[White "Karppinen, Martti"]
[Black "Patola, Eero"]
[Result "1-0"]
[ECO "A85"]
[WhiteElo "1894"]
[BlackElo "1823"]
[Annotator "NA"]
[PlyCount "63"]
[EventDate "2018.??.??"]
[EventCountry "POL"]
[SourceTitle "playchess.com"]
[Source "ChessBase"]
[SourceQuality "1"]
[WhiteTeam "Finland"]
[BlackTeam "Finland"]
[WhiteTeamCountry "FIN"]
[BlackTeamCountry "FIN"]
[TimeControl "40/5400+30:1800+30"]

1. d4 f5 2. c4 Nf6 3. Nc3 g6 4. Bf4 Bg7 5. Nf3 d6 6. Qd2 O-O {A85: Dutch Defence: 2 c4 Nf6 3 Nc3} 7. Bh6 c6 8. Bxg7 Kxg7 9. e3 a6 $146 ({Find the theoretical novelty and annotate with similar games:} 9... Qe8 10. d5 h6 11. Be2 Na6 {1-0 (46) Delgado Ramirez,N (2570)-Cori Tello,D (2414) Montevideo 2011}) 10. d5 Bd7 11. Bd3 h6 12. O-O c5 13. e4 fxe4 14. Nxe4 Bg4 (14... Nxe4 {was necessary.} 15. Bxe4 Rf6) 15. Nh4 Nxe4 16. Bxe4 Bf5 17. Qc3+ Kh7 18. Bxf5 gxf5 19. Rae1 Rf7 $18 (19... e5 {was called for.}) 20. Re6 Nd7 21. Qe3 Qf8 22. Ng6 Qg7 23. h4 Rg8 24. g3 Nf6 25. Nxe7 Ng4 26. Qe2 Re8 27. Re1 Ne5 28. Nxf5 Rxf5 29. Rxe8 Nf3+ 30. Kf1 Nxe1 31. Re7 Rxf2+ 32. Kxf2 1-0

[Event "ESTCC U65 2018"]
[Site "Walbrzych"]
[Date "2018.04.17"]
[Round "4"]
[White "Auvinen, Esa"]
[Black "Vehkalahti, Veli"]
[Result "0-1"]
[ECO "B07"]
[WhiteElo "1888"]
[BlackElo "1880"]
[Annotator "NA"]
[PlyCount "55"]
[EventDate "2018.??.??"]
[EventCountry "POL"]
[SourceTitle "playchess.com"]
[Source "ChessBase"]
[SourceQuality "1"]
[WhiteTeam "FIN"]
[BlackTeam "FIN"]
[WhiteTeamCountry "FIN"]
[BlackTeamCountry "FIN"]
[TimeControl "40/5400+30:1800+30"]

1. e4 {[%emt 0:00:00]} d6 {[%emt 0:01:14]} 2. d4 {[%emt 0:00:00]} Nf6 {[%emt 0:00:13]} 3. Nc3 {[%emt 0:00:00]} Nbd7 {[%emt 0:00:26]} 4. Nf3 {[%emt 0:00:57]} e5 {[%emt 0:00:33]} 5. dxe5 {[%emt 0:01:23]} dxe5 {[%emt 0:00:30]} 6. Bc4 {[%emt 0:00:43]} Be7 {[%emt 0:00:57]} 7. O-O {[%emt 0:00:13]} O-O {[%emt 0:00:07]} 8. Bg5 {[%emt 0:02:24] C41: Philidor Defence} c6 {[%emt 0:00:44]} 9. Bb3 {[%emt 0:05:48]} (9. a4 Qc7 10. Nh4 Nb6 11. Bb3 Bg4 12. Qc1 a5 13. h3 Be6 14. Nf5 Bxf5 15. exf5 Nbd7 16. Qe3 Rae8 17. Rad1 Kh8 {½-½ (30) Mohammad,M (2417)-Rahman,Z (2508) Dhaka 2016}) 9... Qc7 {[%emt 0:00:48]} 10. Re1 {[%emt 0:05:58]} Nc5 {[%emt 0:03:39]} 11. Bc4 {[%emt 0:00:14]} Bg4 $146 {[%emt 0:07:59]} ({Find the theoretical novelty and annotate with similar games:} 11... b5 12. Bd3 Bg4 13. h3 Bh5 14. g4 Bg6 15. Nh4 {½-½ (51) Bagdasarian,S (1870)-Voshchenko,Y Anapa 2010}) 12. Re3 {[%emt 0:03:17]} b5 {[%emt 0:05:21]} 13. Bf1 {[%emt 0:07:31]} b4 {[%emt 0:06:26]} 14. Bxf6 {[%emt 0:02:04]} Bxf6 {[%emt 0:01:03]} 15. Nb1 {[%emt 0:00:21]} Bg5 {[%emt 0:03:43]} 16. Re1 {[%emt 0:01:55]} Rad8 {[%emt 0:02:28]} 17. Qe2 {[%emt 0:00:16]} Ne6 {[%emt 0:00:35]} 18. Qc4 {[%emt 0:06:13]} Bxf3 {[%emt 0:01:04]} 19. gxf3 {[%emt 0:00:01]} Nd4 {[%emt 0:08:18]} 20. Bg2 {[%emt 0:01:41]} Rd6 {[%emt 0:01:32]} 21. c3 {[%emt 0:01:10]} Nc2 {[%emt 0:00:35]} 22. Qe2 {[%emt 0:00:49]} Nxe1 {[%emt 0:04:22]} 23. Qxe1 {[%emt 0:00:09]} Rfd8 {[%emt 0:00:11]} 24. Bf1 {[%emt 0:03:31]} Rd1 {[%emt 0:00:51]} 25. Qe2 {[%emt 0:00:05]} bxc3 {[%emt 0:03:43]} 26. bxc3 {[%emt 0:00:23]} Qd6 $19 {[%emt 0:01:07]} 27. Qb2 {[%emt 0:06:00]} Qg6 {[%emt 0:01:21]} 28. Kh1 {[%emt 0:00:45]} 0-1